bitfinex-derivatives/quotes_ETHF0:USTF0_20260209
["timestamp","ask_amount","ask_price","bid_price","bid_amount"]
[1770671532707,0.5274322,2117.1,2115.8,0.54805248]
[1770671533709,0.5274322,2116.9,2115.7,0.55233745]
[1770671535107,0.5274322,2116.9,2115.8,0.54805248]
[1770671539506,0.5274322,2116.9,2115.7,0.00428497]
[1770671539712,0.54565287,2116.7,2115.7,0.00428497]
[1770671540108,0.54565287,2116.7,2115.8,0.57960575]
[1770671543112,0.54565287,2116.9,2116.2,0.57960575]
[1770671552518,0.54565287,2117.1,2116.2,0.57960575]
[1770671552722,4.6734752,2117.0,2116.2,0.57960575]
[1770671552922,0.54565287,2116.9,2116.2,0.57960575]
[1770671556223,0.54565287,2116.9,2115.8,0.57960575]
[1770671556417,0.54565287,2116.9,2116.2,0.57960575]
[1770671557522,41.99316779,2117.3,2116.4,0.57960575]
[1770671557523,0.54565287,2117.3,2116.4,0.57960575]
[1770671560725,0.54565287,2117.5,2116.4,0.57960575]
[1770671561028,0.54565287,2117.5,2116.5,0.57960575]
[1770671561326,0.55035622,2117.6,2116.5,0.57960575]
[1770671562118,0.00470335,2117.6,2116.7,0.57960575]
[1770671562425,0.54565287,2118.0,2116.9,0.57960575]
[1770671563124,0.54565287,2118.0,2117.1,0.57960575]
[1770671563323,0.55011164,2118.0,2117.1,0.57960575]
[1770671563518,0.00445877,2118.0,2117.1,0.57960575]
[1770671563721,0.00445877,2118.0,2117.3,0.57960575]
[1770671563927,0.00445877,2118.0,2117.3,0.58553114]
[1770671564229,0.55011164,2118.0,2117.3,0.58553114]
[1770671569933,0.55011164,2118.0,2117.3,0.55283259]
[1770671579235,0.56258506,2118.0,2117.3,0.55283259]
[1770671579732,0.00445877,2118.0,2117.3,0.55283259]
[1770671579931,0.56258506,2118.0,2117.3,0.55283259]
[1770671580938,0.00445877,2118.0,2117.3,0.55283259]
[1770671583336,0.55812629,2118.2,2117.5,0.5469072]
[1770671583541,0.55366752,2118.2,2117.5,0.5469072]
[1770671583736,0.55812629,2118.6,2117.5,0.5469072]
[1770671583941,0.55812629,2118.4,2117.5,0.5469072]
[1770671584136,0.55812629,2118.9,2118.2,0.5469072]
[1770671584335,0.56385821,2118.9,2118.2,0.5469072]
[1770671586044,0.56385821,2118.9,2117.6,0.5469072]
[1770671586340,0.55812629,2118.7,2117.6,0.5469072]
[1770671587345,4.13096757,2118.6,2117.6,0.5469072]
[1770671587641,0.55812629,2118.5,2117.6,0.5469072]
[1770671590042,4.13809222,2118.4,2117.6,0.5469072]
[1770671590245,0.55812629,2118.3,2117.6,0.5469072]
[1770671590542,0.55812629,2118.5,2117.6,0.5469072]
[1770671591948,0.00573192,2118.9,2117.4,12.9439072]
[1770671591949,0.55812629,2118.3,2117.4,12.9439072]
[1770671592142,0.55812629,2118.3,2117.5,0.5469072]
[1770671593662,0.55812629,2118.5,2117.5,0.5469072]
[1770671593947,4.14101653,2118.4,2117.5,0.5469072]
[1770671594151,0.55812629,2118.5,2117.5,0.5469072]
[1770671594340,4.1404767,2118.4,2117.5,0.5469072]
[1770671594541,0.55812629,2118.4,2117.5,0.5469072]
[1770671600656,0.53124919,2118.2,2117.5,0.5469072]
[1770671603357,0.53124919,2118.6,2117.5,0.5469072]
[1770671603554,0.53124919,2118.4,2117.5,0.5469072]
[1770671603752,4.1432395,2118.3,2117.5,0.5469072]
[1770671603948,0.53124919,2118.4,2117.5,0.5469072]
[1770671604156,4.67385166,2118.3,2117.5,0.5469072]
[1770671604351,0.53124919,2118.2,2117.5,0.5469072]
[1770671608754,0.53124919,2118.0,2117.5,0.5469072]
[1770671610154,0.53124919,2118.0,2117.4,0.57881792]
[1770671611647,0.53124919,2118.0,2117.3,13.52074331]
[1770671613961,0.53124919,2118.0,2117.4,0.57881792]
[1770671616375,0.53124919,2118.3,2117.4,0.57881792]
[1770671616570,0.53124919,2118.1,2117.6,0.57881792]
[1770671616870,0.53124919,2118.1,2117.4,0.57881792]
[1770671618772,0.53124919,2117.9,2117.3,12.94192539]
[1770671619278,0.53124919,2117.7,2117.3,0.00592539]
[1770671620579,0.53124919,2117.7,2116.8,5.62816445]
[1770671620580,0.53124919,2117.7,2116.8,0.57881792]
[1770671620771,0.53124919,2117.5,2116.8,0.57881792]
[1770671621075,0.53124919,2117.6,2116.8,0.57881792]
[1770671621671,0.53124919,2117.6,2116.8,0.58254848]
[1770671623877,0.53124919,2117.8,2116.8,0.58254848]
[1770671624175,0.53124919,2118.2,2117.0,0.57881792]
[1770671624378,4.66669447,2118.1,2117.2,0.57881792]
[1770671624570,0.53124919,2118.1,2117.2,0.57881792]
[1770671624972,0.53124919,2118.6,2117.2,0.57881792]
[1770671625174,0.53124919,2118.4,2117.2,0.57881792]
[1770671626475,0.53124919,2118.4,2117.4,0.57881792]
[1770671627981,0.53124919,2118.2,2117.4,0.57881792]
[1770671628574,0.53124919,2118.0,2117.4,0.57881792]
[1770671629982,0.57881754,2117.8,2117.2,0.56094866]
[1770671631686,0.57881754,2118.1,2117.2,0.56094866]
[1770671631887,4.7178887,2118.0,2117.2,0.56094866]
[1770671632079,0.57881754,2118.0,2117.2,0.56094866]
[1770671634086,0.57881754,2117.8,2117.2,0.56094866]
[1770671637996,0.57881754,2117.8,2116.9,0.56094866]
[1770671638189,0.57881754,2117.6,2116.9,0.56094866]
[1770671640996,0.57881754,2117.9,2116.9,0.56094866]
[1770671641188,4.71925913,2117.8,2116.9,0.56094866]
[1770671641393,4.71925913,2117.7,2116.9,0.56094866]
[1770671641593,0.57881754,2118.0,2116.9,0.56094866]
[1770671641789,0.57881754,2117.8,2116.9,0.56094866]
[1770671641994,4.14103839,2117.7,2116.9,0.56094866]
[1770671642190,4.14103839,2117.7,2117.0,0.23632]
[1770671642499,4.14103839,2117.7,2116.3,0.56094866]
[1770671642500,0.57881754,2117.4,2116.3,0.56094866]
[1770671642698,0.57881754,2117.2,2116.3,0.56094866]
[1770671642891,0.57881754,2117.0,2116.3,0.56094866]
[1770671643091,0.57881754,2116.8,2116.1,0.56094866]
[1770671643493,0.5829982,2116.8,2116.1,0.56549269]
[1770671644199,0.00418066,2116.8,2116.1,0.56549269]
[1770671646099,2.81637046,2117.3,2116.1,0.56549269]
[1770671646100,0.57881754,2117.3,2116.1,0.56549269]
[1770671646897,0.58225045,2117.3,2116.1,0.56549269]
[1770671652101,0.58225045,2117.3,2116.3,0.56094866]
[1770671653794,0.00343291,2117.3,2116.5,0.56094866]
[1770671657099,0.00343291,2117.3,2116.7,0.56094866]
[1770671657305,0.57881754,2117.7,2116.7,0.56094866]
[1770671658200,0.58466525,2117.7,2116.7,0.56094866]
[1770671664105,0.00584771,2117.7,2117.1,0.5560933]
[1770671670107,0.54841857,2118.1,2117.1,0.5560933]
[1770671670907,0.5531341,2118.1,2117.1,0.5560933]
[1770671677013,0.5531341,2118.1,2117.2,0.5560933]
[1770671678318,0.5531341,2118.1,2117.4,0.5560933]
[1770671683616,0.00471553,2118.1,2117.8,0.5560933]
[1770671683918,0.54730058,2118.3,2117.8,0.5560933]
[1770671684708,0.55073395,2118.3,2117.8,0.55950326]
[1770671685817,0.55073395,2118.3,2117.8,0.00340996]
[1770671686021,0.55073395,2118.3,2117.1,5.62816445]
[1770671686221,0.52541396,2118.1,2117.4,0.5560933]
[1770671687121,0.52541396,2118.1,2117.4,0.5621268]
[1770671687521,0.52541396,2118.1,2117.4,0.0060335]
[1770671688321,0.52541396,2118.1,2117.4,0.5621268]
[1770671691224,4.66546834,2118.0,2117.4,0.5621268]
[1770671691426,0.52074046,2118.0,2117.4,0.5621268]
[1770671699026,0.52074046,2118.0,2117.4,0.0060335]
[1770671699233,0.51962313,2117.8,2117.4,0.53045215]
[1770671700235,0.51919862,2118.2,2117.4,0.53045215]
[1770671700535,4.66819298,2118.1,2117.4,0.53045215]
[1770671700728,4.14899436,2118.0,2117.4,0.53045215]
[1770671700934,0.51919862,2118.2,2117.4,0.53045215]
[1770671701135,4.66850533,2118.1,2117.4,0.53045215]
[1770671701434,0.51919862,2118.1,2117.4,0.53045215]
[1770671704537,0.00343337,2118.3,2117.6,0.52441865]
[1770671704737,3.34619034,2118.9,2118.0,0.52441865]
[1770671705038,0.52088804,2119.0,2118.2,0.52441865]
[1770671705238,0.52088804,2118.9,2118.4,0.52441865]
[1770671705829,0.00533875,2118.9,2118.4,0.52441865]
[1770671706032,0.52062685,2119.2,2118.6,0.52441865]
[1770671706228,0.52062685,2119.4,2118.8,0.52441865]
[1770671706937,0.52504008,2119.4,2118.8,0.52441865]
[1770671707534,0.52504008,2119.4,2118.2,0.52441865]
[1770671707729,0.52062685,2119.2,2118.3,0.52441865]
[1770671718950,0.52062685,2119.2,2118.2,0.28524819]
[1770671719150,0.52062685,2119.2,2118.1,11.576]
[1770671719351,0.52062685,2119.2,2118.1,12.14368463]
[1770671719548,0.52062685,2119.2,2118.2,0.54131952]
[1770671722958,0.53325575,2119.0,2118.1,12.11731952]
[1770671723156,0.53325575,2119.0,2117.9,0.54131952]
[1770671724555,0.53325575,2118.8,2117.7,0.54131952]
[1770671724755,0.53325575,2118.6,2117.7,0.54131952]
[1770671725758,0.53325575,2118.6,2117.6,0.27811166]
[1770671725958,0.53325575,2118.6,2117.6,0.54131952]
[1770671729166,0.30000835,2118.0,2117.1,0.54131952]
[1770671730067,0.30000835,2118.0,2117.1,0.54483637]
[1770671730568,0.30000835,2118.0,2117.1,0.00351685]
[1770671730767,0.30000835,2118.0,2117.1,0.54483637]
[1770671731263,0.3002422,2117.8,2116.8,0.54131952]
[1770671731468,0.29672535,2117.6,2116.7,0.54131952]
[1770671732169,0.29672535,2117.6,2116.7,0.54618775]
[1770671732465,0.30277882,2117.6,2116.7,0.00486823]
[1770671732668,0.29679892,2117.4,2116.7,0.00486823]
[1770671732866,0.29679892,2117.4,2116.5,0.54131952]
[1770671733766,0.29679892,2117.4,2116.5,0.54591694]
[1770671735363,0.30399908,2117.5,2116.7,0.54131952]
[1770671735564,0.00605347,2117.6,2116.7,0.54131952]
[1770671735766,0.00118524,2117.6,2116.9,0.54131952]
[1770671735964,0.30810485,2117.9,2116.9,0.54131952]
[1770671736466,0.30810485,2117.9,2117.1,0.54131952]
[1770671737066,0.31275712,2117.9,2117.1,0.54131952]
[1770671741763,0.00465227,2117.9,2117.1,0.54131952]
[1770671742171,0.31366932,2118.3,2117.3,0.54131952]
[1770671742564,0.31366932,2118.3,2117.5,0.54131952]
[1770671742966,0.31832159,2118.9,2117.5,0.54131952]
[1770671743167,0.31832159,2118.7,2117.7,0.54131952]
[1770671743369,0.31832159,2118.7,2117.9,0.54131952]
[1770671744364,0.34374663,2118.8,2117.9,0.54131952]
[1770671744969,0.0046604,2118.9,2117.9,0.54131952]
[1770671745474,0.34840703,2118.9,2118.1,0.54131952]
[1770671745775,0.34840703,2118.9,2118.1,0.54487763]
[1770671748274,0.0046604,2118.9,2118.3,0.54131952]
[1770671748781,0.34043583,2119.1,2118.3,0.54131952]
[1770671749778,0.34586972,2119.1,2118.3,0.54131952]
[1770671758289,0.34586972,2119.1,2118.3,0.52929314]
[1770671758488,0.34586972,2119.1,2118.2,0.76548314]
[1770671758879,0.34586972,2119.1,2118.1,0.00355811]
[1770671760380,0.32556989,2118.9,2118.1,0.00355811]
[1770671760777,0.32556989,2118.9,2118.1,0.53285125]
[1770671762692,0.00543389,2119.1,2118.3,0.52929314]
[1770671762987,41.99316779,2119.4,2118.3,0.52929314]
[1770671762988,0.32427785,2119.7,2118.9,0.52929314]
[1770671763991,0.32994683,2119.7,2118.9,0.52929314]
[1770671773495,0.34512206,2119.5,2118.9,0.52929314]
[1770671774095,0.34512206,2119.5,2118.7,0.52929314]
[1770671774294,0.34566224,2119.3,2118.7,0.52929314]
[1770671774792,0.34566224,2119.1,2118.4,0.52929314]
[1770671775296,0.34566224,2119.1,2118.2,13.73329314]
[1770671775498,0.34566224,2118.9,2118.2,0.52929314]
[1770671776385,0.34566224,2118.9,2118.1,0.00355811]
[1770671776590,0.34506799,2118.6,2117.7,0.52929314]
[1770671776792,2.8253023,2118.7,2117.4,0.52929314]
[1770671776793,0.34506799,2118.3,2117.4,0.52929314]
[1770671776998,4.4729283,2118.2,2117.4,0.52929314]
[1770671777197,0.34506799,2118.1,2117.4,0.52929314]
[1770671777697,0.34968429,2118.1,2117.4,0.53537349]
[1770671783600,2.8253023,2118.6,2117.4,0.53537349]
[1770671783801,0.34686036,2118.9,2118.0,0.56886174]
[1770671783997,0.55835453,2118.7,2117.5,0.56886174]
[1770671784202,0.55835453,2118.5,2117.5,0.56886174]
[1770671784702,0.56281132,2118.5,2117.5,0.56886174]
[1770671794305,0.56281132,2118.5,2117.7,0.56886174]
[1770671795404,4.11435897,2118.4,2117.4,0.57494209]
[1770671795715,0.55835453,2118.2,2117.4,0.57494209]
[1770671796510,0.55835453,2118.2,2117.4,0.00608035]
[1770671796710,0.55835453,2118.2,2117.4,0.57494209]
[1770671798016,0.55835453,2118.0,2117.4,0.57494209]
[1770671798515,0.55835453,2118.0,2117.1,0.23631]
[1770671798516,0.55835453,2118.0,2117.0,0.56886174]
[1770671798917,0.55835453,2117.8,2117.0,0.56886174]
[1770671799405,0.55835453,2117.8,2117.0,0.57285703]
[1770671799807,3.50356587,2117.8,2116.7,0.56886174]
[1770671800003,0.55835453,2117.6,2116.7,0.56886174]
[1770671801011,0.55835453,2117.6,2116.7,0.00360474]
[1770671801213,0.55835453,2117.4,2116.7,0.00360474]
[1770671802611,0.55835453,2117.2,2116.7,0.00360474]
[1770671804814,0.55835453,2117.2,2116.5,0.56886174]
[1770671806019,0.55835453,2117.2,2116.5,0.57448659]
[1770671806619,0.55835453,2117.2,2116.2,0.56886174]
[1770671806918,0.55835453,2117.0,2116.2,0.56886174]
[1770671807116,0.55835453,2117.2,2116.2,0.56886174]
[1770671807317,0.55835453,2117.0,2116.2,0.56886174]
[1770671807714,0.56200004,2117.0,2116.2,0.57355991]
[1770671809314,0.56200004,2117.0,2116.2,0.00469817]
[1770671810122,0.53231751,2116.8,2115.9,0.53081081]
[1770671810515,0.53231751,2116.8,2115.3,13.142]
[1770671810516,0.53231751,2116.6,2115.7,0.53081081]
[1770671810721,0.53231751,2116.6,2115.4,0.53081081]
[1770671811227,0.53231751,2116.6,2115.4,0.53594709]
[1770671812823,0.53231751,2116.7,2115.8,0.53081081]
[1770671817814,0.53231751,2116.7,2115.5,0.53081081]
[1770671818018,0.53231751,2116.5,2115.5,0.53081081]
[1770671820115,3.0616623,2116.7,2115.5,0.53081081]
[1770671820116,0.53231751,2116.3,2115.5,0.53081081]
[1770671820515,0.53231751,2116.3,2115.4,0.53594709]
[1770671821826,0.53231751,2116.1,2115.4,0.53594709]
[1770671823518,0.53231751,2116.4,2115.6,0.53081081]
[1770671827131,0.53231751,2116.2,2115.5,0.53081081]
[1770671832229,0.53231751,2116.0,2115.5,0.53081081]
[1770671834131,0.53231751,2116.0,2115.4,0.00513628]
[1770671834323,0.53231751,2115.8,2115.2,0.53081081]
[1770671834731,0.53231751,2115.8,2114.8,0.53081081]
[1770671834936,0.53231751,2115.6,2114.8,0.53081081]
[1770671835231,0.53231751,2115.8,2114.8,0.53081081]
[1770671835525,0.53231751,2115.6,2114.8,0.53592557]
[1770671837826,0.53231751,2115.7,2114.8,0.53592557]
[1770671839227,4.64349876,2115.6,2114.8,0.53592557]
[1770671839429,0.53231751,2115.6,2114.8,0.53592557]
[1770671840331,0.52734029,2115.4,2114.8,0.53592557]
[1770671840532,0.53070974,2115.4,2114.8,0.53592557]
[1770671841332,0.53070974,2115.4,2114.8,0.53294691]
[1770671843940,0.53070974,2115.4,2114.5,0.81456321]
[1770671843941,0.52734029,2115.2,2114.5,0.5]
[1770671844338,0.52734029,2115.2,2114.5,1.02783215]
[1770671844927,0.52734029,2115.2,2114.5,1.03355739]
[1770671846336,0.52734029,2115.2,2114.6,0.52783215]
[1770671846938,0.52734029,2115.2,2114.5,0.50572524]
[1770671848036,0.52734029,2115.0,2114.5,0.5878364]
[1770671848335,0.52734029,2115.1,2114.5,0.5878364]
[1770671848537,2.79737035,2115.3,2114.5,0.5878364]
[1770671848538,0.52734029,2115.0,2114.5,0.5878364]
[1770671848835,0.52734029,2115.0,2114.5,0.06000425]
[1770671849041,0.52734029,2115.0,2114.6,0.52783215]
[1770671849242,0.52734029,2115.0,2114.5,0.5878364]
[1770671849634,0.52734029,2115.0,2114.5,0.06000425]
[1770671850439,0.52734029,2115.0,2114.5,0.5878364]
[1770671851743,0.52734029,2115.0,2114.5,0.06000425]
[1770671852143,0.52734029,2114.1,2113.2,0.06790512]
[1770671852338,0.52734029,2113.9,2112.6,0.52783215]
[1770671852541,0.52734029,2113.9,2112.7,0.52783215]
[1770671852542,0.52734029,2113.7,2112.7,0.52783215]
[1770671853345,0.52734029,2113.7,2112.7,0.53150551]
[1770671853346,0.52734029,2113.5,2112.7,0.53150551]
[1770671853545,0.52734029,2113.3,2112.7,0.53150551]
[1770671853940,0.52734029,2113.3,2112.7,0.00367336]
[1770671855448,0.52734029,2113.2,2112.2,0.52783215]
[1770671855942,0.52734029,2113.0,2111.7,0.52783215]
[1770671856459,0.52734029,2113.0,2111.7,0.53135229]
[1770671857856,0.52734029,2113.0,2111.8,0.52783215]
[1770671859355,0.52734029,2112.8,2111.8,0.52783215]
[1770671861961,0.52734029,2112.6,2111.7,0.53135229]
[1770671862660,0.52734029,2112.6,2111.0,0.23699]
[1770671862661,0.52734029,2112.0,2110.8,0.52783215]
[1770671862850,0.52734029,2112.2,2111.2,0.52783215]
[1770671863652,0.5327198,2112.2,2111.2,0.53381194]
[1770671864253,0.5327198,2112.2,2111.3,0.52783215]
[1770671866358,0.52734029,2112.1,2111.2,0.00597979]
[1770671867565,0.52734029,2112.1,2111.2,0.53381194]
[1770671868061,0.52734029,2112.1,2111.2,0.00597979]
[1770671868253,0.52734029,2111.9,2111.2,0.00597979]
[1770671869162,0.52734029,2112.0,2111.3,0.52783215]
[1770671869365,0.52734029,2112.0,2111.2,0.00597979]
[1770671870359,0.52734029,2112.0,2111.2,0.53857236]
[1770671870658,0.52734029,2112.0,2111.2,0.00597979]
[1770671871556,0.52734029,2112.0,2111.2,0.53857236]
[1770671872360,0.5662657,2112.2,2111.2,0.53857236]
[1770671872555,0.56088619,2112.1,2111.2,0.00597979]
[1770671872758,0.56088619,2112.1,2111.2,0.53857236]
[1770671873859,0.56088619,2112.1,2111.2,0.00597979]
[1770671874058,0.56088619,2112.1,2111.2,0.53857236]
[1770671876270,0.00537951,2112.2,2111.2,0.53857236]
[1770671876859,0.5662657,2112.2,2111.2,0.53857236]
[1770671877467,0.00537951,2112.2,2111.4,0.53259257]
[1770671877769,0.5662657,2112.2,2111.4,0.53259257]
[1770671878558,0.00537951,2112.2,2111.4,0.53259257]
[1770671879371,0.56088619,2112.8,2111.8,0.53259257]
[1770671880270,0.56088619,2112.8,2112.0,0.53259257]
[1770671880466,0.56603956,2112.8,2112.1,0.53259257]
[1770671880975,0.56088619,2113.4,2112.3,0.53259257]
[1770671881373,0.56088619,2113.2,2112.3,0.53259257]
[1770671881678,0.56088619,2113.4,2112.7,0.53259257]
[1770671881867,0.56088619,2113.6,2112.7,0.53259257]
[1770671882064,0.56088619,2113.3,2112.7,0.53798273]
[1770671882263,0.00387347,2113.4,2112.7,0.53798273]
[1770671882468,0.56088619,2113.7,2112.7,0.53798273]
[1770671882873,0.56088619,2113.7,2112.9,0.53259257]
[1770671883270,0.56088619,2113.7,2113.0,0.53259257]
[1770671883470,0.56088619,2113.9,2113.0,0.53259257]
[1770671884474,0.56526255,2113.9,2113.0,0.53259257]
[1770671884871,0.56088619,2114.4,2113.4,0.53259257]
[1770671885877,0.56604928,2114.4,2113.4,0.53259257]
[1770671886377,0.56604928,2114.4,2113.6,0.53259257]
[1770671886378,0.00516309,2114.4,2113.6,0.53259257]
[1770671886568,0.56088619,2114.6,2113.6,0.53259257]
[1770671886774,0.56088619,2115.1,2113.8,0.53259257]
[1770671887280,0.56088619,2115.1,2114.0,0.53259257]
[1770671887673,0.56696161,2115.1,2114.0,0.53259257]
[1770671889581,0.56696161,2115.1,2114.2,0.53259257]
[1770671889780,0.56696161,2115.1,2114.2,0.53776707]
[1770671891177,0.56696161,2115.1,2112.8,8.78648431]
[1770671891178,0.56088619,2114.7,2113.6,0.53259257]
[1770671891380,0.56088619,2114.7,2113.3,0.53259257]
[1770671892272,0.56088619,2114.7,2113.3,0.53626644]
[1770671895183,0.56088619,2114.7,2113.4,0.53259257]
[1770671897784,0.56088619,2114.7,2113.5,0.53259257]
[1770671897983,0.56088619,2114.7,2113.6,0.53259257]
[1770671898183,0.56088619,2114.7,2113.5,0.76930257]
[1770671898385,0.56088619,2114.7,2113.6,0.53259257]
[1770671904184,0.56088619,2114.7,2113.5,0.79134364]
[1770671905591,0.56088619,2114.7,2113.6,0.55463364]
[1770671906789,0.52637115,2114.5,2113.5,0.79134364]
[1770671907090,0.52637115,2114.5,2113.6,0.55463364]
[1770671909392,4.69097151,2114.4,2113.6,0.55463364]
[1770671909594,0.52637115,2114.6,2114.0,0.55463364]
[1770671909989,0.00607542,2115.1,2114.2,0.55463364]
[1770671910295,4.16698146,2115.0,2114.2,0.55463364]
[1770671910491,0.53244657,2115.1,2114.2,0.55463364]
[1770671913494,0.00607542,2115.1,2114.4,0.55463364]
[1770671913696,0.53244657,2115.1,2114.4,0.55463364]
[1770671914197,0.00607542,2115.1,2114.4,0.55463364]
[1770671914498,0.53244657,2115.1,2114.4,0.55463364]
[1770671915395,0.00607542,2115.1,2114.4,0.55463364]
[1770671916702,0.53244657,2115.1,2114.4,0.55463364]
[1770671918695,0.00607542,2115.1,2114.4,0.55463364]
[1770671926608,0.00607542,2115.1,2114.6,0.55463364]
[1770671929709,0.54570924,2115.1,2114.6,0.55463364]
[1770671930810,0.00607542,2115.1,2114.6,0.55463364]
[1770671931809,0.54570924,2115.1,2114.6,0.55463364]
[1770671932807,0.00607542,2115.1,2114.6,0.55463364]
[1770671933912,0.00607542,2115.1,2114.7,0.53695124]
[1770671934108,0.53963382,2115.4,2114.7,0.53695124]
[1770671934408,0.53963382,2115.2,2114.6,0.53695124]
[1770671934799,0.53963382,2115.2,2114.7,13.66095124]
[1770671935014,0.5434533,2115.2,2114.8,0.53695124]
[1770671935204,0.5434533,2115.2,2114.8,0.54035052]
[1770671935899,0.5434533,2115.2,2114.8,0.00339928]
[1770671936401,0.5434533,2115.2,2114.5,0.53695124]
[1770671936605,0.5434533,2115.2,2114.7,0.53695124]
[1770671937010,0.5434533,2115.2,2114.7,13.68095124]
[1770671937411,0.5434533,2115.2,2114.8,0.53695124]
[1770671938213,0.53963382,2115.1,2114.8,0.53695124]
[1770671938814,0.00381948,2115.2,2114.8,0.53695124]
[1770671939010,3.33652316,2115.4,2114.8,0.53695124]
[1770671939313,0.53963382,2115.2,2114.7,13.68689368]
[1770671939513,4.72814296,2115.1,2114.7,13.68689368]
[1770671939816,0.53963382,2115.1,2114.8,0.53695124]
[1770671940009,0.54466473,2115.1,2114.8,0.53695124]
[1770671940810,0.53963382,2115.2,2114.8,0.53695124]
[1770671941013,4.18877789,2115.1,2114.8,0.53695124]
[1770671941212,0.53963382,2115.2,2114.8,0.53695124]
[1770671941413,4.18932514,2115.1,2114.8,0.53695124]
[1770671941608,0.53963382,2115.2,2114.8,0.53695124]
[1770671941811,4.18895785,2115.1,2114.8,0.53695124]
[1770671942011,0.54340982,2115.2,2114.8,0.53695124]
[1770671942206,4.1893417,2115.1,2114.8,0.53695124]
[1770671942414,0.54340982,2115.2,2114.8,0.53695124]
[1770671942613,4.19026954,2115.1,2114.8,0.53695124]
[1770671942814,0.54340982,2115.2,2114.8,0.53695124]
[1770671943111,4.19049439,2115.1,2114.8,0.53695124]
[1770671943309,0.003776,2115.2,2114.8,0.53695124]
[1770671943510,4.19091082,2115.1,2114.8,0.53695124]
[1770671943710,0.54340982,2115.2,2114.8,0.53695124]
[1770671943919,4.19021441,2115.1,2114.8,0.53695124]
[1770671944216,0.54340982,2115.2,2114.8,0.53695124]
[1770671944416,4.19014731,2115.1,2114.8,0.53695124]
[1770671944617,0.54340982,2115.2,2114.8,0.53695124]
[1770671944915,4.18984352,2115.1,2114.8,0.53695124]
[1770671945112,0.54340982,2115.2,2114.8,0.53695124]
[1770671945312,4.1888614,2115.1,2114.8,0.53695124]
[1770671945513,0.54340982,2115.2,2114.8,0.53695124]
[1770671945713,4.18868812,2115.1,2114.8,0.53695124]
[1770671945917,0.54340982,2115.2,2114.8,0.53695124]
[1770671946117,4.18870284,2115.1,2114.8,0.53695124]
[1770671946317,0.54340982,2115.2,2114.8,0.53695124]
[1770671946520,4.18861603,2115.1,2114.8,0.53695124]
[1770671946707,0.54340982,2115.2,2114.8,0.53695124]
[1770671946912,4.72831115,2115.1,2114.8,0.53695124]
[1770671947113,0.53963382,2115.1,2114.7,13.68689368]
[1770671947314,0.53963382,2115.0,2114.7,13.68689368]
[1770671947512,0.53963382,2115.0,2114.8,13.243]
[1770671947710,0.53963382,2114.8,2114.2,13.246]
[1770671947916,0.53963382,2114.6,2114.3,0.53695124]
[1770671948317,0.53963382,2114.7,2114.3,0.53695124]
[1770671948824,0.53963382,2114.7,2114.3,0.54028383]
[1770671950718,0.53963382,2114.7,2114.3,0.00333259]
[1770671950923,0.53963382,2114.7,2114.3,13.83528383]
[1770671951522,0.53963382,2114.7,2114.4,0.53695124]
[1770671951827,1.79007144,2114.6,2113.8,0.23668]
[1770671952027,0.53963382,2114.7,2114.0,0.53695124]
[1770671952229,1.79007144,2114.8,2114.0,0.53695124]
[1770671952428,4.18353613,2114.7,2114.0,0.53695124]
[1770671952627,2.32970526,2114.8,2114.0,0.53695124]
[1770671952827,4.18413588,2114.7,2114.0,0.54257242]
[1770671953030,2.32970526,2114.8,2114.0,0.54257242]
[1770671953330,4.1845876,2114.7,2114.0,0.54257242]
[1770671953532,2.32970526,2114.8,2114.0,0.54257242]
[1770671953731,4.72330939,2114.7,2114.0,0.54257242]
[1770671953934,0.53963382,2114.7,2114.0,0.54257242]
[1770671955433,1.79007144,2114.8,2114.0,0.54257242]
[1770671955734,2.32970526,2114.8,2114.0,0.54257242]
[1770671956032,0.53963382,2114.7,2114.0,0.54257242]
[1770671958038,0.53963382,2114.6,2114.0,0.54257242]
[1770671958237,0.53963382,2114.5,2114.0,0.54257242]
[1770671958433,0.53963382,2114.7,2114.0,0.54257242]
[1770671958833,41.84761848,2115.1,2114.4,0.53695124]
[1770671958834,0.53963382,2115.1,2114.4,0.53695124]
[1770671959037,2.80066534,2115.2,2114.4,13.90995124]
[1770671959038,0.53963382,2114.8,2114.4,13.90995124]
[1770671959235,0.53963382,2114.8,2114.4,0.53695124]
[1770671959936,0.53963382,2114.8,2114.3,13.93921849]
[1770671960131,0.53963382,2114.8,2114.3,13.382]
[1770671960337,0.57566676,2114.6,2114.3,13.382]
[1770671960737,0.57566676,2114.6,2114.3,13.93921849]
[1770671960940,2.3657382,2114.7,2114.4,0.55721849]
[1770671961141,2.3657382,2115.0,2114.4,0.55721849]
[1770671961940,0.57566676,2114.9,2114.4,0.55721849]
[1770671962736,0.57566676,2114.7,2114.2,13.95221849]
[1770671962939,2.3657382,2114.6,2114.2,13.95221849]
[1770671963134,0.57566676,2114.3,2114.0,0.56283967]
[1770671963437,2.3657382,2114.4,2114.0,0.56283967]
[1770671964039,0.57566676,2114.4,2114.0,0.56283967]
[1770671964235,0.57566676,2114.5,2114.0,0.56283967]
[1770671964836,2.3657382,2114.6,2114.0,0.56283967]
[1770671965138,0.57566676,2114.6,2114.0,0.56283967]
[1770671965543,2.3657382,2114.8,2114.0,0.56283967]
[1770671965740,0.57566676,2114.7,2114.0,0.56283967]
[1770671968944,0.57566676,2114.7,2114.2,0.55721849]
[1770671969538,1.79007144,2115.0,2114.2,0.55721849]
[1770671969739,0.57566676,2114.8,2114.2,0.55721849]
[1770671971647,0.57566676,2114.9,2114.2,0.55721849]
[1770671971948,4.59073678,2115.2,2114.1,13.475]
[1770671971949,0.57944276,2115.2,2114.6,0.55721849]
[1770671972149,0.57944276,2115.2,2114.7,0.55721849]
[1770671973650,0.003776,2115.2,2114.7,0.55721849]
[1770671974950,0.57566676,2115.1,2114.7,0.55721849]
[1770671975147,0.57566676,2114.9,2114.4,0.55721849]
[1770671975348,0.57566676,2114.9,2114.5,0.55721849]
[1770671976449,0.57566676,2114.9,2114.2,0.55721849]
[1770671976754,0.57566676,2114.9,2114.0,0.00562118]
[1770671976755,0.57566676,2114.9,2114.3,14.12821849]
[1770671978554,0.57566676,2114.9,2114.3,0.55721849]
[1770671983553,0.57566676,2114.9,2114.1,0.55721849]
[1770671983756,0.57566676,2114.7,2114.0,0.00562118]
[1770671983946,0.57566676,2114.5,2113.9,0.55721849]
[1770671984151,0.57566676,2114.5,2113.8,14.20721849]
[1770671984850,0.57566676,2114.5,2113.8,14.21096678]
[1770671986755,0.57566676,2114.5,2113.8,0.56096678]
[1770671986962,0.57566676,2114.5,2113.8,0.00374829]
[1770671989454,0.57072997,2114.3,2113.5,0.55721849]
[1770671990452,0.57072997,2114.3,2113.5,0.56279009]
[1770672001675,2.79688934,2114.7,2113.7,0.55601629]
[1770672001676,0.57072997,2114.7,2113.7,0.55601629]
[1770672001869,0.57072997,2114.5,2113.7,0.55601629]
[1770672002068,43.63835168,2115.0,2114.3,0.55601629]
[1770672002069,0.57072997,2115.0,2114.3,0.55601629]
[1770672002266,0.57072997,2115.0,2114.1,0.55601629]
[1770672007978,0.57072997,2115.0,2113.6,0.55601629]
[1770672007979,0.57072997,2114.6,2113.6,0.55601629]
[1770672008280,0.57072997,2114.4,2113.6,0.55601629]
[1770672008475,0.57072997,2114.2,2113.5,0.0055716]